Cogmind - Beta 12 X1 @@@ ROGUE MODE // 2022.08.02 @ 17:18:34 Player: btmk16 Result: Core destroyed Performance ------------- Evolutions (7) 3500 Regions Visited (24) 4800 Robots Destroyed (313) 1565 Value Destroyed (14599) 14599 Prototype IDs (36) 720 Alien Tech Used (0) 0 Bonus (6564) 6564 TOTAL SCORE: 31748 Bonus ------- High Alert Combat Kills 2253 Follower Combat Kills 1615 Entered Garrisons 1000 Used RIF Installer 2000 Aligned with FarCom 300 Friendly Fire -604 Cogmind --------- Core Integrity 0/1300 Matter 300/300 Energy 99/100 System Corruption 40% Temperature Cool (0) Movement Core (50) Location -3/Garrison Parts ------- > --- POWER (1) -------- (None) > --- PROPULSION (6) --- (None) > --- UTILITY (11) ----- (None) > --- WEAPON (3) ------- (None) > --- INVENTORY (5) ---- Relay Coupler [NC] (26) Relay Coupler [Swarmer] (35) Relay Coupler [Brawler] (32) Relay Coupler [Demolisher] (21) Relay Coupler [Hunter] (19) Peak State ------------ > --- POWER ------------ Light Quantum Reactor > --- PROPULSION ------- Carbon-fiber Leg Carbon-fiber Leg Carbon-fiber Leg Myomer Leg Advanced VSS Leg Advanced VSS Leg > --- UTILITY ---------- Advanced Cooling System Advanced Cooling System High-capacity Storage Unit Improved Targeting Computer Core Analyzer Advanced Particle Charger Relay Coupler [Cutter] Relay Coupler [Brawler] Relay Coupler [Sentry] > --- WEAPON ----------- Gatling Laser KE Penetrator KE Penetrator > --- INVENTORY -------- Improved Heat Sink High-capacity Matter Pod Transmission Jammer Improved Light Armor Plating EM Disruption Field Relay Coupler [NC] Relay Coupler [Brawler] Relay Coupler [Duelist] Relay Coupler [Hunter] Relay Coupler [Heavy] Relay Coupler [Heavy] Chronowheel KE Penetrator Heavy Rocket Launcher Heavy Rocket Launcher Heavy Rocket Launcher Remote Datajack Chainsword Tiamat Bomb Trap Tiamat Bomb Trap [Rating: 99] Favorites ----------- Power Heavy Ion Engine Engine Heavy Ion Engine Power Core Micro Nuclear Core Reactor Light Antimatter Reactor Propulsion Light Treads Treads Light Treads Leg Flexi-carbon Leg Wheel Compact Wheel Hover Unit Improved Antigrav System Flight Unit Surge Thruster Utility High-capacity Storage Unit Device Improved Heat Sink Storage High-capacity Storage Unit Processor Signal Interpreter Hackware Relay Coupler [Hunter] Protection Improved Medium Armor Plating Weapon KE Penetrator Energy Gun Dispersion Rifle Energy Cannon Compact Ion Cannon Ballistic Gun KE Penetrator Ballistic Cannon Hardcell Cannon Launcher Heavy Rocket Launcher Special Weapon Remote Datajack Slashing Weapon Chainsword Special Melee Weapon Improved Datajack Build | -11 -10 -10 -9 -9 -9 -8 -8 -8 -8 -7 -7 -7 -7 -7 -6 -6 -5 -5 -5 -4 -4 -4 -3 -3 ------- Run | Scr Mat Min Mat Min Exi Min Mat Gar Mat Fac Gar Fac Low Low Fac Gar Fac Gar Fac Fac Upp Upp Res Gar Slots Evolved 14 | . . . 2 . . . 2 . . 2 . . . . 2 . 2 . . 2 . . 2 . Power . | . . . . . . . . . . . . . . . . . . . . . . . . . Propulsion 4 | . . . 1 . . . . . . 1 . . . . . . 1 . . 1 . . . . Utility 9 | . . . 1 . . . 1 . . 1 . . . . 2 . 1 . . 1 . . 2 . Weapon 1 | . . . . . . . 1 . . . . . . . . . . . . . . . . . Parts Attached 372 | . 7 2 22 4 . 2 24 16 22 17 60 6 8 . 1 41 3 35 30 41 2 . . 29 Power 22 | . 1 . 5 . . . 1 . 2 1 2 . . . . 2 . 2 1 3 . . . 2 Engine 12 | . 1 . 5 . . . 1 . 2 . 1 . . . . 1 . 1 . . . . . . Core 3 | . . . . . . . . . . 1 . . . . . . . . . 2 . . . . Reactor 7 | . . . . . . . . . . . 1 . . . . 1 . 1 1 1 . . . 2 Propulsion 82 | . 2 1 8 2 . . 7 2 2 5 13 2 . . . 6 . 8 5 12 . . . 7 Treads 46 | . 2 1 5 2 . . 7 2 2 5 11 2 . . . 5 . . . 1 . . . 1 Leg 25 | . . . . . . . . . . . 1 . . . . . . 8 3 8 . . . 5 Wheel 8 | . . . 3 . . . . . . . . . . . . . . . 2 3 . . . . Hover 2 | . . . . . . . . . . . 1 . . . . . . . . . . . . 1 Flight 1 | . . . . . . . . . . . . . . . . 1 . . . . . . . . Utility 97 | . 2 . 5 . . . 7 2 3 7 15 1 . . 1 17 1 15 5 8 . . . 8 Device 36 | . 1 . 1 . . . 2 1 1 3 7 . . . 1 8 . 2 5 1 . . . 3 Storage 4 | . 1 . 1 . . . . . . 1 . . . . . . . . . 1 . . . . Processor 6 | . . . 3 . . . . . . . . . . . . . 1 1 . 1 . . . . Hackware 37 | . . . . . . . . . 2 1 5 1 . . . 8 . 12 . 5 . . . 3 Protection 14 | . . . . . . . 5 1 . 2 3 . . . . 1 . . . . . . . 2 Artifact . | . . . . . . . . . . . . . . . . . . . . . . . . . Weapon 171 | . 2 1 4 2 . 2 9 12 15 4 30 3 8 . . 16 2 10 19 18 2 . . 12 Energy Gun 33 | . 2 . 3 . . . 3 1 . 1 9 . 1 . . 7 . 1 1 2 . . . 2 Energy Cannon 3 | . . . . . . . . . . . 1 . . . . . 1 1 . . . . . . Ballistic Gun 60 | . . 1 1 1 . 2 5 8 7 2 6 . 2 . . 3 . 3 12 4 1 . . 2 Ballistic Cannon 12 | . . . . . . . . 1 . . 7 . 2 . . . 1 . . . . . . 1 Launcher 24 | . . . . 1 . . 1 2 2 . 2 . 2 . . 3 . 2 1 5 1 . . 2 Special Weapon 24 | . . . . . . . . . 1 1 5 2 . . . 3 . 3 4 3 . . . 2 Impact Weapon . | . . . . . . . . . . . . . . . . . . . . . . . . . Slashing Weapon 10 | . . . . . . . . . . . . 1 1 . . . . . 1 4 . . . 3 Piercing Weapon . | . . . . . . . . . . . . . . . . . . . . . . . . . Special Melee Weapon 5 | . . . . . . . . . 5 . . . . . . . . . . . . . . . Unidentified Prototypes 6 | . . . 2 . . . 2 1 . . . . . . . . 1 . . . . . . . Corrupted Parts 4 | . . 2 . . . . . . . . 1 . . . . 1 . . . . . . . . System Corruption 13 | . . 5 . . . . . . . . 7 . . . . 1 . . . . . . . . Parts Lost 112 | . 1 . . . . . 5 1 2 3 19 . . . . 10 . 4 9 19 . . . 39 Power 11 | . . . . . . . . . 2 . 1 . . . . 2 . . . 3 . . . 3 Propulsion 38 | . . . . . . . 2 . . 2 4 . . . . 3 . 2 6 9 . . . 10 Utility 31 | . . . . . . . 2 1 . . 7 . . . . 2 . . 2 2 . . . 15 Weapon 32 | . 1 . . . . . 1 . . 1 7 . . . . 3 . 2 1 5 . . . 11 Highest Loss Streak 12 | . 1 . . . . . 3 1 1 1 9 . . . . 3 . 1 3 8 . . . 12 To Critical Strikes 2 | . . . . . . . . . . . . . . . . . . . 1 1 . . . . Average Slot Usage (%) 90 | . 99 100 98 100 80 100 99 94 89 92 91 84 84 84 75 89 63 87 92 86 89 89 80 43 Engine 4 | . 14 14 10 11 11 11 9 9 9 . . . . . . . . . . . . . . . Core 1 | . . . . . . . . . . 6 4 . . . . . . . . . 5 5 4 1 Reactor 1 | . . . . . . . . . . . 1 7 7 7 6 5 . 1 5 2 . . . 1 Treads 20 | . 26 28 26 33 33 33 26 27 27 29 22 23 23 23 20 20 17 6 . . 5 5 4 1 Leg 3 | . 1 . . . . . . . . . . . . . . . . 15 21 23 . . . 2 Device 7 | . 13 14 10 11 11 11 9 9 2 12 8 2 . . 2 10 . 3 7 5 . . . 5 Storage 7 | . 14 14 11 11 11 11 9 9 9 7 7 7 7 7 6 6 5 5 5 4 5 5 4 2 Processor 3 | . . . 10 11 11 11 9 4 . . . . . . . . 2 5 5 9 10 10 9 5 Hackware 9 | . . . . . . . . . 6 . 10 11 15 15 13 20 29 29 23 22 31 31 28 4 Protection 4 | . . . . . . . 8 8 9 10 8 7 7 7 6 4 . . . . . . . 2 Energy Gun 5 | . 14 14 11 11 1 . 4 . . 4 8 13 7 7 6 4 . 2 . 1 . . . 1 Ballistic Gun 12 | . 14 14 11 10 1 22 21 26 25 17 8 . 1 7 6 11 5 3 16 9 1 5 4 1 Naked Turns 44 | . . . . . . . . . . . . . . . . . . . . . . . . 44 Heaviest Build 96 | 13 30 30 55 55 55 55 61 81 86 83 95 95 92 92 93 96 58 69 78 78 43 41 41 54 Greatest Support 150 | 20 40 40 60 63 63 63 63 60 60 80 150 123 123 123 123 123 68 108 108 131 48 48 48 75 Greatest Overweight (x) 15 | . . 9 3 . . . 1 1 1 1 2 . . . . 1 . 2 4 3 . . . 15 Average Overweight (x) . | . . . . . . . . . 1 . . . . . . . . . . . . . . 1 Largest Inventory Capacity 20 | . 15 15 20 20 20 20 20 20 20 20 20 20 20 20 20 20 20 20 20 20 10 10 10 10 Average Capacity 18 | . 14 15 19 20 20 20 20 20 20 20 20 20 20 20 20 20 20 20 20 18 10 10 10 8 Most Carried 20 | . 15 15 20 20 20 20 20 20 20 20 20 20 20 20 20 20 20 20 20 20 10 10 10 10 Average Carried 18 | . 12 14 18 20 19 18 19 19 19 19 18 18 20 20 20 19 20 19 20 18 9 10 10 7 Final Capacity 20 | 8 15 15 20 20 20 20 20 20 20 20 20 20 20 20 20 20 20 20 20 10 10 10 10 5 Final Carried 20 | 6 14 15 20 20 20 20 20 20 20 20 17 20 20 20 20 20 20 20 20 9 10 10 10 5 Class Distribution -------------------- 23% | Bothacker-Mutant 17% | Mutant 14% | Scavenger-Skirmisher 10% | Bothacker-Skirmisher 7% | Scavenger-Mutant 6% | Botlord-Skirmisher 5% | Bothacker-Tank 4% | Scavenger-Tank 3% | Skirmisher 3% | Botlord-Gunner Dominant Class ---------------- Mutant | -10/Materials Mutant | -10/Mines Scavenger-Mutant | -9/Materials Mutant | -9/Mines Mutant | -9/Exiles Skirmisher | -8/Mines Scavenger-Skirmisher | -8/Materials Scavenger-Skirmisher | -8/Garrison Bothacker-Skirmisher | -8/Materials Scavenger-Skirmisher | -7/Factory Bothacker-Mutant | -7/Garrison Bothacker-Mutant | -7/Factory Bothacker-Mutant | -7/Lower Caves Bothacker-Tank | -7/Lower Caves Bothacker-Skirmisher | -6/Factory Bothacker-Skirmisher | -6/Garrison Bothacker-Mutant | -5/Factory Bothacker-Mutant | -5/Garrison Botlord-Skirmisher | -5/Factory Botlord-Gunner | -4/Factory Bothacker-Mutant | -4/Upper Caves Bothacker-Mutant | -4/Upper Caves Bothacker-Mutant | -3/Research Mutant | -3/Garrison Resources | -11 -10 -10 -9 -9 -9 -8 -8 -8 -8 -7 -7 -7 -7 -7 -6 -6 -5 -5 -5 -4 -4 -4 -3 -3 ----------- Run | Scr Mat Min Mat Min Exi Min Mat Gar Mat Fac Gar Fac Low Low Fac Gar Fac Gar Fac Fac Upp Upp Res Gar Matter Collected 11554 | 200 412 18 547 75 . 170 739 625 1415 747 1506 43 481 . . 1000 74 662 1035 1079 54 . . 672 Remotely 408 | . 390 18 . . . . . . . . . . . . . . . . . . . . . . Salvage Created 14297 | . 467 10 1260 144 . 260 1279 700 1535 893 2228 43 312 . 52 1240 124 479 1244 1383 64 . . 580 Parts 699 | . 38 4 81 11 . 20 59 44 97 52 82 6 9 . 5 55 3 8 54 66 3 . . 2 Haulers Intercepted 18 | . 2 . 5 . . . 6 . 3 1 . . . . . . . . . 1 . . . . Recyclers Shooed 4 | . . . . . . . . . . . . . . . . . . . 3 1 . . . . Parts Field Recycled . | . . . . . . . . . . . . . . . . . . . . . . . . . Retrieved Matter . | . . . . . . . . . . . . . . . . . . . . . . . . . Parts Self-Destructed 11 | . . . . . . . . . . . . . 8 . . . . . . . 3 . . . Prevented . | . . . . . . . . . . . . . . . . . . . . . . . . . Kills | -11 -10 -10 -9 -9 -9 -8 -8 -8 -8 -7 -7 -7 -7 -7 -6 -6 -5 -5 -5 -4 -4 -4 -3 -3 ------- Run | Scr Mat Min Mat Min Exi Min Mat Gar Mat Fac Gar Fac Low Low Fac Gar Fac Gar Fac Fac Upp Upp Res Gar Combat Hostiles Destroyed 266 | . 12 . 23 6 . 3 15 19 27 13 33 . 7 . 1 24 . 8 13 19 4 . . 39 Melee 19 | . . . . . . . . . . . . . . . . 1 . . . 1 . . . 17 Guns 168 | . 12 . 23 3 . 3 14 11 17 13 17 . 2 . . 16 . 3 13 13 . . . 8 Cannons 29 | . . . . . . . . . . . 11 . . . 1 2 . 1 . . . . . 14 AOE 48 | . . . . 3 . . . 8 10 . 4 . 5 . . 5 . 4 . 5 4 . . . Classes Destroyed 22 | . 5 1 1 1 . 1 3 1 3 . 2 . 1 . . 1 . . . . . . . 2 Worker 17 | . 1 . 3 . . 1 2 . 3 2 . 1 . . . . . . 2 2 . . . . Builder 7 | . . . . . . . . . 4 . . . . . . . . . 1 2 . . . . Tunneler 3 | . . 1 . . . 2 . . . . . . . . . . . . . . . . . . Hauler 18 | . 2 . 5 . . . 6 . 3 1 . . . . . . . . . 1 . . . . Recycler 9 | . . . . . . . 2 . 2 1 . . . . . . . . 2 2 . . . . Mechanic 5 | . . . . . . . . . 2 . . . . . . . . . 2 1 . . . . Operator 5 | . . . . . . . 1 . 1 1 . . . . . . . . 2 . . . . . Watcher 14 | . 1 . 5 . . . . 1 1 4 1 1 . . . . . . . . . . . . Swarmer 50 | . 6 . 9 3 . . . 4 1 4 3 . 6 . . 4 . . . 4 4 . . 2 Cutter 6 | . . . . . . . . . . . 2 . . . . 4 . . . . . . . . Saboteur 1 | . . . . . . . . . . . . . . . . 1 . . . . . . . . Grunt 86 | . 6 . 7 2 . 2 9 5 14 2 14 . 1 . . 6 . 5 6 6 . . . 1 Brawler 8 | . . . . 1 . . . . 5 1 . . . . . 1 . . . . . . . . Duelist 10 | . . . . . . 1 1 2 1 . 3 . . . . 1 . 1 . . . . . . Protector 1 | . . . . . . . . . 1 . . . . . . . . . . . . . . . Sentry 39 | . . . 7 . . . 4 1 3 2 9 . . . 1 6 . 2 2 1 . . . 1 Specialist 2 | . . . . . . . . . . . 2 . . . . . . . . . . . . . Hunter 14 | . . . . . . . 1 4 2 . 1 . . . . . . . 2 4 . . . . Programmer 16 | . . . . . . . . 3 . 4 . . . . . 2 . . 3 4 . . . . Behemoth 1 | . . . . . . . . . . . . . . . . . . . . . . . . 1 Decomposer 2 | . . . . . . . . . . . . . 2 . . . . . . . . . . . Packrat 2 | . . . . . . . . . . . . . 1 . . . . . . . 1 . . . Samaritan 2 | . . . . . . . . . . . . . 2 . . . . . . . . . . . Assembled 34 | . . . . . . . . . . . . . . . . . . . . . . . . 34 Thug 1 | . . . . . . . . . . . 1 . . . . . . . . . . . . . Best Kill Streak 13 | . 3 1 9 4 . 3 9 5 9 6 4 1 3 . 1 7 . 4 7 6 4 . . 13 Combat Bots Only 13 | . 3 . 6 3 . 3 6 4 8 4 4 . 3 . 1 7 . 4 6 4 4 . . 13 Max Kills in Single Turn 4 | . 1 1 2 3 . 2 1 3 3 2 2 1 2 . 1 4 . 2 1 2 2 . . 2 Gunslinging 1 | . . . 1 . . . . . 1 1 . . . . . 1 . . . 1 . . . . Exploded 3 | . . . . 3 . . . 3 3 . 2 . 2 . . 3 . 2 . 2 2 . . . Melee 1 | . . . . . . . . . . . . . . . . 1 . . . 1 . . . 1 Uniques/NPCs Destroyed . | . . . . . . . . . . . . . . . . . . . . . . . . . Combat | -11 -10 -10 -9 -9 -9 -8 -8 -8 -8 -7 -7 -7 -7 -7 -6 -6 -5 -5 -5 -4 -4 -4 -3 -3 -------- Run | Scr Mat Min Mat Min Exi Min Mat Gar Mat Fac Gar Fac Low Low Fac Gar Fac Gar Fac Fac Upp Upp Res Gar Damage Taken 21143 | . 335 23 829 25 . 17 969 749 883 625 5049 . 181 . 79 1766 . 1034 1636 2340 206 . . 4397 Core 3454 | . 43 . 171 . . . 23 156 52 57 513 . 27 . . 168 . 246 263 402 32 . . 1301 Absorbed by Shields 320 | . . . . . . . . . . . . . . . . 60 . 223 . . . . . 37 Reduced by Siege Mode 191 | . . . . . . . . . . . 144 . . . . . . . . . . . . 47 Regen/Repaired (Parts) 95 | . . . . . . . . . . . . . . . . . . . . 95 . . . . Core Remaining (%) 62 | 100 . 82 . . . 57 . . 58 . . . . 14 . 80 . . 49 . . 62 . . Volleys Fired 940 | . 49 6 84 4 . 16 59 59 82 44 171 9 7 . 1 74 3 64 67 78 5 . . 58 Largest 3 | . 2 2 2 2 . 2 3 3 3 3 3 1 3 . 3 3 1 3 3 3 1 . . 3 Hottest 241 | . 70 70 81 89 . 46 107 91 91 141 241 5 186 . 186 186 33 199 99 146 39 . . 176 Shots Fired 2016 | . 97 12 164 9 . 32 173 128 220 123 312 11 15 . 3 167 3 100 180 155 6 . . 106 Gun 1732 | . 97 12 164 8 . 32 171 120 208 121 235 2 7 . 2 139 3 46 172 126 1 . . 66 Cannon 131 | . . . . . . . . 2 . . 60 . 3 . 1 11 . 18 . . . . . 36 Launcher 70 | . . . . 1 . . 2 6 12 . 6 . 5 . . 9 . 6 1 15 5 . . 2 Special 83 | . . . . . . . . . . 2 11 9 . . . 8 . 30 7 14 . . . 2 Kinetic 1409 | . 49 6 83 3 . 32 137 121 208 97 170 . 5 . 2 110 3 27 172 107 1 . . 76 Thermal 449 | . 48 6 81 5 . . 34 . . 24 121 2 5 . 1 40 . 37 . 19 . . . 26 Explosive 70 | . . . . 1 . . 2 6 12 . 6 . 5 . . 9 . 6 1 15 5 . . 2 Electromagnetic 5 | . . . . . . . . 1 . . 4 . . . . . . . . . . . . . Robot Hit Streak 25 | . 11 4 22 7 . 12 18 11 25 14 23 6 6 . 7 17 2 24 13 13 2 . . 15 Robot Miss Streak 7 | . 3 2 3 . . 2 4 3 7 6 5 2 2 . 1 3 1 2 3 4 . . . 6 Penetration Max 1 | . . . . . . . . 1 1 1 1 . . . . 1 . . 1 1 . . . . Secondary Targets 19 | . . . 2 . . . 1 1 2 1 6 . . . . 4 . . 1 1 . . . . Max Gunslinging Chain 1 | . . . 1 . . . 1 1 1 1 1 . . . . 1 . . 1 1 . . . . Autonomous 11 | . . . . . . . . . . . . . . . . . . . . . . . . 11 Shots Hit Robots 1282 | . 62 6 112 4 . 22 111 62 119 78 205 9 13 . 2 95 2 66 113 98 2 . . 101 Core Hits 694 | . 26 4 53 7 . 11 49 39 71 38 93 1 10 . 2 44 3 29 59 79 13 . . 63 Critical Kills 11 | . . . . . . 1 2 . 2 . 4 . . . . 2 . . . . . . . . Critical Parts Destroyed 12 | . . . . . . . 1 . 1 1 2 . . . . 1 . 1 4 1 . . . . Critical Strikes 50 | . 2 . 7 . . 1 7 . 3 1 15 . . . . 4 . 1 4 3 . . . 2 Burn 23 | . 2 . 7 . . . 4 . . . 8 . . . . 1 . . . . . . . 1 Destroy 23 | . . . . . . 1 3 . 3 1 6 . . . . 3 . 1 4 1 . . . . Blast 2 | . . . . . . . . . . . 1 . . . . . . . . . . . . 1 Sever 2 | . . . . . . . . . . . . . . . . . . . . 2 . . . . Melee Attacks 82 | . . . . . . . . . 8 . . 2 7 . . . . . 3 8 2 . . 52 Impact . | . . . . . . . . . . . . . . . . . . . . . . . . . Slashing 74 | . . . . . . . . . . . . 2 7 . . . . . 3 8 2 . . 52 Piercing . | . . . . . . . . . . . . . . . . . . . . . . . . . Sneak Attacks 17 | . . . . . . . . . 2 . . 2 6 . . . . . . 6 1 . . . Combat Hostiles 3 | . . . . . . . . . . . . . . . . . . . . 3 . . . . Follow-up Attacks 5 | . . . . . . . . . . . . . . . . . . . . 1 . . . 4 Damage Inflicted 35658 | . 749 96 1758 232 . 344 1876 1921 4082 1691 5537 159 1046 . 66 3014 77 1608 3125 3939 545 . . 3793 Guns 23529 | . 749 96 1758 61 . 344 1866 1226 2503 1691 3979 27 96 . 27 2339 77 629 2850 1992 . . . 1219 Cannons 2678 | . . . . . . . . . . . 1128 . 72 . 39 224 . 359 . . . . . 856 Explosions 6787 | . . . . 168 . . 10 695 1579 . 430 . 402 . . 451 . 620 263 1524 470 . . 175 Melee 2521 | . . . . . . . . . . . . 132 476 . . . . . . 421 75 . . 1417 Ramming 143 | . . . . 3 . . . . . . . . . . . . . . 12 2 . . . 126 Kinetic 19418 | . 364 60 911 12 . 344 1458 1226 2503 1298 2756 . 87 . 39 1967 77 315 2850 1695 . . . 1456 Thermal 6694 | . 385 36 847 49 . . 408 . . 393 2256 27 81 . 27 596 . 673 . 297 . . . 619 Explosive 6697 | . . . . 168 . . 10 695 1534 . 430 . 402 . . 451 . 620 263 1479 470 . . 175 Electromagnetic 185 | . . . . . . . . . 45 . 95 . . . . . . . . 45 . . . . Impact . | . . . . . . . . . . . . . . . . . . . . . . . . . Slashing 2521 | . . . . . . . . . . . . 132 476 . . . . . . 421 75 . . 1417 Piercing . | . . . . . . . . . . . . . . . . . . . . . . . . . Highest Corruption 40 | . . 5 3 3 3 3 1 4 6 1 8 10 10 10 . 2 . . 8 3 3 3 . 40 Average Corruption 4 | . . 4 2 3 3 3 1 2 5 1 2 9 10 10 . 1 . . 4 1 3 3 . 8 Corruption Purged 9 | . . . . . . . . . . 1 . . . . . . . . 8 . . . . . Corruption Blocked . | . . . . . . . . . . . . . . . . . . . . . . . . . Effects 322 | . . 1 9 20 6 12 8 18 50 . 37 22 57 3 . 9 . . 26 14 12 1 . 17 Message Errors 92 | . . . 3 8 1 4 3 5 19 . 9 6 12 1 . 1 . . 6 6 3 1 . 4 Matter Fused 72 | . . 1 1 3 2 4 2 4 11 . 5 5 12 . . 2 . . 5 5 4 . . 6 Heat Flow Errors 39 | . . . 2 4 1 2 1 1 7 . 6 4 7 1 . 1 . . 2 . . . . . Energy Discharges 32 | . . . . 1 2 . 1 1 3 . 5 3 7 1 . 1 . . 5 1 . . . 1 Parts Rejected 1 | . . . 1 . . . . . . . . . . . . . . . . . . . . . Data Loss (minor) 39 | . . . . 2 . . . 1 6 . 7 2 12 . . 4 . . 2 . 2 . . 1 Data Loss (major) 19 | . . . 1 1 . . 1 2 2 . 3 . 2 . . . . . 2 1 2 . . 2 Misfires 14 | . . . . 1 . . . 2 . . 2 2 3 . . . . . 2 . 1 . . 1 Alerts 5 | . . . . . . 2 . 1 . . . . 1 . . . . . . . . . . 1 Misdirections 1 | . . . . . . . . . . . . . . . . . . . . . . . . 1 Weapon Failures 8 | . . . 1 . . . . 1 2 . . . 1 . . . . . 2 1 . . . . Overload Shots . | . . . . . . . . . . . . . . . . . . . . . . . . . Overflow Damage 737 | . . . . . . . . 42 16 . 20 31 238 . . 48 . 6 35 80 13 . . 208 Projectiles 102 | . . . . . . . . . . . 20 . 1 . . . . . . . . . . 81 Explosions 329 | . . . . . . . . 42 16 . . . 74 . . 48 . 6 35 80 13 . . 15 Melee 306 | . . . . . . . . . . . . 31 163 . . . . . . . . . . 112 Knockbacks 12 | . . . . . . . . . . . 4 . 2 . . . . . . . . . . 6 Impact . | . . . . . . . . . . . . . . . . . . . . . . . . . Kinetic 11 | . . . . . . . . . . . 4 . 2 . . . . . . . . . . 5 Secondary 1 | . . . . . . . . . . . . . . . . . . . . . . . . 1 Self-Inflicted Damage 534 | . . . . 19 . . 47 . . . 74 . 42 . . 58 . . 39 192 . . . 63 Shots 14 | . . . . 1 . . 1 . . . 2 . 2 . . 1 . . 1 5 . . . 1 Rammed 36 | . . . . 1 . . . . . . . . . . . . . . . . . . . 35 Targets Rammed 47 | . . . . 1 . . . . . . . . . . . . . . 2 1 . . . 43 Kicked 11 | . . . . . . . . . . . . . . . . . . . 2 1 . . . 8 Crushed . | . . . . . . . . . . . . . . . . . . . . . . . . . Highest Temperature 498 | . 45 30 207 227 208 230 331 240 498 113 486 233 273 112 132 376 . 396 240 74 . . . 292 Average Temperature 99 | . 17 11 47 75 107 86 91 27 124 38 166 68 81 57 72 96 . 114 77 23 . . . 74 Received Heat Transfer 4801 | . 120 12 252 . . 9 342 72 297 129 1533 . 36 . 18 500 . 203 382 166 . . . 730 Effects 37 | . . . . . . . 2 . 4 . 26 . . . . 2 . 2 . . . . . 1 Shutdowns 8 | . . . . . . . 1 . 1 . 5 . . . . . . 1 . . . . . . Energy Bleed 11 | . . . . . . . 1 . . . 7 . . . . 1 . 1 . . . . . 1 Interference 8 | . . . . . . . . . . . 8 . . . . . . . . . . . . . Matter Decay 1 | . . . . . . . . . . . 1 . . . . . . . . . . . . . Short Circuit 3 | . . . . . . . . . 1 . 1 . . . . 1 . . . . . . . . Damage (minor) 5 | . . . . . . . . . 2 . 3 . . . . . . . . . . . . . Damage (major) 1 | . . . . . . . . . . . 1 . . . . . . . . . . . . . Siege Activations 6 | . . . . . . . . . . . 4 . . . . . . . . . . . . 2 Total Turns 130 | . . . . . . . . . . . 64 . . . . . . . . . . . . 66 Longest Duration 59 | . . . . . . . . . . . 30 . . . . . . . . . . . . 59 Robots Corrupted . | . . . . . . . . . . . . . . . . . . . . . . . . . Combat Hostiles . | . . . . . . . . . . . . . . . . . . . . . . . . . Parts Fried . | . . . . . . . . . . . . . . . . . . . . . . . . . Impact Corruptions 1 | . . . . . . . . . . . . . . . . . . . . . . . . 1 Robots Melted 4 | . . . . . . . 1 . . . 3 . . . . . . . . . . . . . Combat Hostiles 2 | . . . . . . . 1 . . . 1 . . . . . . . . . . . . . Parts Melted 34 | . 2 . 3 . . . 4 . . 1 22 . 1 . . . . . . 1 . . . . Heat Transferred 14801 | . 1165 111 2590 111 . . 1184 . . 850 5429 37 111 . 37 942 . 885 . 545 . . . 804 Parts Sabotaged 4 | . . . . . . . . . . . . . . . . 4 . . . . . . . . Parts Stolen . | . . . . . . . . . . . . . . . . . . . . . . . . . Parts Stripped . | . . . . . . . . . . . . . . . . . . . . . . . . . Power Chain Reactions 1 | . . . . . . . . . . . . . . . . . . . . 1 . . . . Missiles Intercepted . | . . . . . . . . . . . . . . . . . . . . . . . . . Alert | -11 -10 -10 -9 -9 -9 -8 -8 -8 -8 -7 -7 -7 -7 -7 -6 -6 -5 -5 -5 -4 -4 -4 -3 -3 ------- Run | Scr Mat Min Mat Min Exi Min Mat Gar Mat Fac Gar Fac Low Low Fac Gar Fac Gar Fac Fac Upp Upp Res Gar Peak Influence 2053 | . 220 95 465 299 . 80 291 954 910 448 2053 1084 . . 100 1009 528 1264 719 914 . . 232 539 Initial 1077 | . . 20 . 132 . . 31 179 464 413 268 1077 . . 39 70 513 369 663 310 . . 232 174 Average 480 | . 100 34 316 129 . 19 206 563 619 290 1092 957 . . 48 603 518 652 441 598 . . 232 375 Maximum Alert Level 5 | . 1 . 2 1 . . 1 3 3 2 5 3 . . . 3 2 4 3 3 . . 1 2 Low Security (%) 22 | . 92 100 12 65 . 100 47 6 . 16 . . . . 100 10 . . . . . . . 19 Level 1 25 | . 7 . 60 34 . . 52 25 6 67 11 . . . . 8 . 8 41 15 . . 100 17 Level 2 29 | . . . 26 . . . . 38 75 15 12 . . . . 45 100 49 53 37 . . . 62 Level 3 17 | . . . . . . . . 29 17 . 26 100 . . . 35 . 34 4 46 . . . . Level 4 3 | . . . . . . . . . . . 29 . . . . . . 8 . . . . . . Level 5 1 | . . . . . . . . . . . 18 . . . . . . . . . . . . . High Security . | . . . . . . . . . . . . . . . . . . . . . . . . . Max Security . | . . . . . . . . . . . . . . . . . . . . . . . . . Squads Dispatched 37 | . 4 . 3 . . . 2 . 6 7 . 1 . . . . . . 5 9 . . . . Investigation 6 | . 2 . 1 . . . 1 . . . . . . . . . . . 1 1 . . . . Extermination 9 | . . . . . . . . . . 5 . . . . . . . . 2 2 . . . . Reinforcement 15 | . 2 . 2 . . . 1 . 3 1 . 1 . . . . . . . 5 . . . . Assault 6 | . . . . . . . . . 3 . . . . . . . . . 2 1 . . . . Garrison 1 | . . . . . . . . . . 1 . . . . . . . . . . . . . . Intercept . | . . . . . . . . . . . . . . . . . . . . . . . . . Searches Triggered . | . . . . . . . . . . . . . . . . . . . . . . . . . Construction Impeded 4 | . . . . . . . . . 1 . . . . . . . . . . 3 . . . . Haulers Reinforced 2 | . . . . . . . . . . 1 . . . . . . . . . 1 . . . . Active Scanning Responses . | . . . . . . . . . . . . . . . . . . . . . . . . . Cargo Convoy Interrupts 1 | . . . . . . . . . . . . . . . . . . . . 1 . . . . Stealth | -11 -10 -10 -9 -9 -9 -8 -8 -8 -8 -7 -7 -7 -7 -7 -6 -6 -5 -5 -5 -4 -4 -4 -3 -3 --------- Run | Scr Mat Min Mat Min Exi Min Mat Gar Mat Fac Gar Fac Low Low Fac Gar Fac Gar Fac Fac Upp Upp Res Gar Distress Signals 14 | . 1 . 1 . . . 6 . 4 1 . . . . . . . . 1 . . . . . Communications Jammed . | . . . . . . . . . . . . . . . . . . . . . . . . . Distress Signals . | . . . . . . . . . . . . . . . . . . . . . . . . . Times Spotted 482 | . 25 2 38 6 . 3 34 23 58 22 42 3 7 . 5 32 . 27 36 39 2 . . 78 Peak Tracking Total 27 | . 3 2 5 3 . 3 7 5 6 5 5 1 3 . 4 7 . 5 7 4 4 . . 27 Tactical Retreats 22 | . . . . . . . 3 1 5 . 1 . . . 1 3 . 2 . . . . . 6 Traps | -11 -10 -10 -9 -9 -9 -8 -8 -8 -8 -7 -7 -7 -7 -7 -6 -6 -5 -5 -5 -4 -4 -4 -3 -3 ------- Run | Scr Mat Min Mat Min Exi Min Mat Gar Mat Fac Gar Fac Low Low Fac Gar Fac Gar Fac Fac Upp Upp Res Gar Traps Triggered 28 | . 2 . 1 . . . 1 5 1 3 4 1 . . . 5 . . 3 . . . . 2 Indirectly . | . . . . . . . . . . . . . . . . . . . . . . . . . Trap Hack Attempts . | . . . . . . . . . . . . . . . . . . . . . . . . . Triggered . | . . . . . . . . . . . . . . . . . . . . . . . . . Disarmed . | . . . . . . . . . . . . . . . . . . . . . . . . . Reprogrammed . | . . . . . . . . . . . . . . . . . . . . . . . . . Reused 2 | . . . . . . . . 2 . . . . . . . . . . . . . . . . Traps Extracted . | . . . . . . . . . . . . . . . . . . . . . . . . . Installed 5 | . . . . . . . . 5 . . . . . . . . . . . . . . . . Triggered 8 | . . . . . . . . 2 . . . . 2 . . . . . . 3 . 1 . . Most Traps Carried 2 | . . . . . . . . 2 . . . . . . . 2 2 2 2 2 . . . . Machines | -11 -10 -10 -9 -9 -9 -8 -8 -8 -8 -7 -7 -7 -7 -7 -6 -6 -5 -5 -5 -4 -4 -4 -3 -3 ---------- Run | Scr Mat Min Mat Min Exi Min Mat Gar Mat Fac Gar Fac Low Low Fac Gar Fac Gar Fac Fac Upp Upp Res Gar Machines Disabled 66 | . . 1 1 . . . 1 3 8 5 11 1 . . . 6 . 4 11 11 . . . 3 Max in Single Turn 4 | . . . 1 . . . 1 1 2 4 1 1 . . . 1 . 1 2 2 . . . 1 Garrison Relay 20 | . . . . . . . . 2 . . 7 . . . . 2 . 7 . . . . . 2 Phase Generator 1 | . . . . . . . . . . . 1 . . . . . . . . . . . . . Machines Sabotaged . | . . . . . . . . . . . . . . . . . . . . . . . . . Garrisons Compromised 1 | . . . . . . . . . . . . . . . . . . . . 1 . . . . Overloaded Fab Kills . | . . . . . . . . . . . . . . . . . . . . . . . . . Hacking | -11 -10 -10 -9 -9 -9 -8 -8 -8 -8 -7 -7 -7 -7 -7 -6 -6 -5 -5 -5 -4 -4 -4 -3 -3 --------- Run | Scr Mat Min Mat Min Exi Min Mat Gar Mat Fac Gar Fac Low Low Fac Gar Fac Gar Fac Fac Upp Upp Res Gar Machines Accessed 51 | . 3 1 10 1 1 . 7 1 4 12 1 . . . 1 1 1 3 1 2 . . 1 . Terminals 35 | . 3 . 8 1 . . 6 1 4 5 1 . . . . 1 . 3 1 1 . . . . Fabricators 2 | . . . . . . . . . . 2 . . . . . . . . . . . . . . Repair Stations 1 | . . . . . . . . . . . . . . . . . . . . 1 . . . . Recycling Units 3 | . . . 1 . . . . . . 2 . . . . . . . . . . . . . . Scanalyzers 3 | . . . 1 . . . . . . 2 . . . . . . . . . . . . . . Garrison Access 5 | . . . . . . . 1 . . 1 . . . . 1 . 1 . . . . . 1 . Total Hacks 109 | . 6 1 25 2 1 . 17 1 14 25 1 . . . 1 1 1 7 2 3 . . 1 . Successful 51 | . 3 1 12 . 1 . 5 1 8 12 1 . . . 1 1 1 2 . 1 . . 1 . Failed 58 | . 3 . 13 2 . . 12 . 6 13 . . . . . . . 5 2 2 . . . . Catastrophic 8 | . 1 . 2 . . . 1 . . 3 . . . . . . . . . 1 . . . . Database Lockouts . | . . . . . . . . . . . . . . . . . . . . . . . . . Manual 37 | . 1 . 11 2 1 . 3 . 6 8 . . . . . . . . 2 3 . . . . Terminals 83 | . 6 . 21 2 . . 14 1 14 13 1 . . . . 1 . 7 2 1 . . . . Fabricators 5 | . . . . . . . . . . 5 . . . . . . . . . . . . . . Repair Stations 2 | . . . . . . . . . . . . . . . . . . . . 2 . . . . Recycling Units 5 | . . . 1 . . . . . . 4 . . . . . . . . . . . . . . Scanalyzers 5 | . . . 3 . . . . . . 2 . . . . . . . . . . . . . . Garrison Access 7 | . . . . . . . 3 . . 1 . . . . 1 . 1 . . . . . 1 . Terminal Hacks 28 | . 3 1 6 . 1 . 4 1 6 2 1 . . . . 1 . 2 . . . . . . Robot Schematic 1 | . . . . . . . . . . 1 . . . . . . . . . . . . . . Prototype ID Bank 4 | . 1 . . . . . 1 . 2 . . . . . . . . . . . . . . . Open Door 1 | . . 1 . . . . . . . . . . . . . . . . . . . . . . Branch Access Points 3 | . 1 . . . . . 1 . . 1 . . . . . . . . . . . . . . Emergency Access Points 4 | . 1 . . . . . . 1 . . 1 . . . . 1 . . . . . . . . Terminal Index 2 | . . . 1 . . . 1 . . . . . . . . . . . . . . . . . Alert Level 3 | . . . 1 . . . 1 . 1 . . . . . . . . . . . . . . . Unreport Threat 2 | . . . 1 . . . . . 1 . . . . . . . . . . . . . . . Locate Traps 1 | . . . . . . . . . 1 . . . . . . . . . . . . . . . Hauler Manifests 1 | . . . 1 . . . . . . . . . . . . . . . . . . . . . Zone Layout 3 | . . . 2 . . . . . 1 . . . . . . . . . . . . . . . Garrison Registry 1 | . . . . . . . . . . . . . . . . . . 1 . . . . . . Security Stations 1 | . . . . . . . . . . . . . . . . . . 1 . . . . . . EX-Prototype ID Bank 1 | . . . . . 1 . . . . . . . . . . . . . . . . . . . Fabricator Hacks 2 | . . . . . . . . . . 2 . . . . . . . . . . . . . . Network Status 2 | . . . . . . . . . . 2 . . . . . . . . . . . . . . Repair Station Hacks . | . . . . . . . . . . . . . . . . . . . . . . . . . Recycling Unit Hacks 4 | . . . 1 . . . . . . 3 . . . . . . . . . . . . . . Retrieve Components 4 | . . . 1 . . . . . . 3 . . . . . . . . . . . . . . Scanalyzer 4 | . . . 3 . . . . . . 1 . . . . . . . . . . . . . . Insert Component 2 | . . . 1 . . . . . . 1 . . . . . . . . . . . . . . Analyze 2 | . . . 2 . . . . . . . . . . . . . . . . . . . . . Garrison Access Hacks 5 | . . . . . . . 1 . . 1 . . . . 1 . 1 . . . . . 1 . Unlock Access 5 | . . . . . . . 1 . . 1 . . . . 1 . 1 . . . . . 1 . Unauthorized Hacks 8 | . . . 2 . . . . . 2 3 . . . . . . . . . 1 . . . . Terminals 7 | . . . 2 . . . . . 2 3 . . . . . . . . . . . . . . Track 1 | . . . . . . . . . 1 . . . . . . . . . . . . . . . Botnet 6 | . . . 2 . . . . . 1 3 . . . . . . . . . . . . . . Fabricators . | . . . . . . . . . . . . . . . . . . . . . . . . . Repair Stations 1 | . . . . . . . . . . . . . . . . . . . . 1 . . . . Mechanics 1 | . . . . . . . . . . . . . . . . . . . . 1 . . . . Recycling Units . | . . . . . . . . . . . . . . . . . . . . . . . . . Scanalyzers . | . . . . . . . . . . . . . . . . . . . . . . . . . Garrison Access . | . . . . . . . . . . . . . . . . . . . . . . . . . Data Cores Recovered 2 | . . . . . . . 1 . . 1 . . . . . . . . . . . . . . Used . | . . . . . . . . . . . . . . . . . . . . . . . . . Hacking Detections 41 | . 3 . 8 1 . . 7 1 2 11 . . . . . . 1 3 1 2 . . 1 . Full Trace Events 6 | . . . 1 . . . 2 . . . . . . . . . . 1 1 1 . . . . Feedback Events 2 | . . . 1 . . . . . . . . . . . . . . . 1 . . . . . Corruption 2 | . . . 1 . . . . . . . . . . . . . . . 1 . . . . . Feedback Blocked . | . . . . . . . . . . . . . . . . . . . . . . . . . Robot Schematics Acquired 1 | . . . . . . . . . . 1 . . . . . . . . . . . . . . Robots Built . | . . . . . . . . . . . . . . . . . . . . . . . . . Authchips . | . . . . . . . . . . . . . . . . . . . . . . . . . Time . | . . . . . . . . . . . . . . . . . . . . . . . . . Total Robot Build Rating . | . . . . . . . . . . . . . . . . . . . . . . . . . Part Schematics Acquired 1 | . . . 1 . . . . . . . . . . . . . . . . . . . . . Parts Built . | . . . . . . . . . . . . . . . . . . . . . . . . . Authchips . | . . . . . . . . . . . . . . . . . . . . . . . . . Time . | . . . . . . . . . . . . . . . . . . . . . . . . . Total Part Build Rating . | . . . . . . . . . . . . . . . . . . . . . . . . . Parts Repaired . | . . . . . . . . . . . . . . . . . . . . . . . . . Time . | . . . . . . . . . . . . . . . . . . . . . . . . . Parts Recycled . | . . . . . . . . . . . . . . . . . . . . . . . . . Recycled Matter . | . . . . . . . . . . . . . . . . . . . . . . . . . Retrieved Matter . | . . . . . . . . . . . . . . . . . . . . . . . . . Retrieved Components 19 | . . . 10 . . . . . . 9 . . . . . . . . . . . . . . Parts Scanalyzed 1 | . . . 1 . . . . . . . . . . . . . . . . . . . . . Part Schematics Acquired 1 | . . . 1 . . . . . . . . . . . . . . . . . . . . . Parts Damaged . | . . . . . . . . . . . . . . . . . . . . . . . . . Bothacking | -11 -10 -10 -9 -9 -9 -8 -8 -8 -8 -7 -7 -7 -7 -7 -6 -6 -5 -5 -5 -4 -4 -4 -3 -3 ------------ Run | Scr Mat Min Mat Min Exi Min Mat Gar Mat Fac Gar Fac Low Low Fac Gar Fac Gar Fac Fac Upp Upp Res Gar Used RIF Installer 4 | . . . . . . . . 1 . . 1 . . . . 1 . 1 . . . . . . Patrol Navigation 1 | . . . . . . . . . . . . . . . . 1 . . . . . . . . Structural Interface 1 | . . . . . . . . . . . 1 . . . . . . . . . . . . . Autooverride 1 | . . . . . . . . . . . . . . . . . . 1 . . . . . . Robots Hacked 48 | . . . . . . . . . 5 1 6 2 . . . 5 . 15 4 8 . . . 2 Non-combat 6 | . . . . . . . . . 1 . . 2 . . . . . . 1 2 . . . . Combat 42 | . . . . . . . . . 4 1 6 . . . . 5 . 15 3 6 . . . 2 Autooverrided 3 | . . . . . . . . . . . . . . . . . . . . 3 . . . . Robot Hacks Applied 53 | . . . . . . . . . 5 1 7 3 . . . 6 . 17 6 6 . . . 2 ignore_repairs 1 | . . . . . . . . . 1 . . . . . . . . . . . . . . . purge_threat 4 | . . . . . . . . . . . . 1 . . . . . . 3 . . . . . relay_feed 1 | . . . . . . . . . . . . 1 . . . . . . . . . . . . spike_heat 1 | . . . . . . . . . . . . . . . . . . 1 . . . . . . overload_power 3 | . . . . . . . . . . . 2 . . . . 1 . . . . . . . . disable_weapons 2 | . . . . . . . . . . . . . . . . 1 . 1 . . . . . . reboot_system 4 | . . . . . . . . . . . . . . . . . . 2 . . . . . 2 go_dormant 3 | . . . . . . . . . . . 1 . . . . 1 . . 1 . . . . . streamctrl_high 3 | . . . . . . . . . . . 2 . . . . 1 . . . . . . . . formatsys_low 2 | . . . . . . . . . . . . . . . . . . . . 2 . . . . formatsys_high 29 | . . . . . . . . . 4 1 2 1 . . . 2 . 13 2 4 . . . . Relay Couplers Released 77 | . . . . . . . . 8 . . 27 . . . . 6 . 27 . . . . . 9 Machine Destruction 77 | . . . . . . . . 8 . . 27 . . . . 6 . 27 . . . . . 9 Attached 37 | . . . . . . . . . 2 1 5 1 . . . 8 . 12 . 5 . . . 3 Fabnet Peak Effective % . | . . . . . . . . . . . . . . . . . . . . . . . . . Robots Rewired . | . . . . . . . . . . . . . . . . . . . . . . . . . Allies Hacked 1 | . . . . . . . . . . . . . . . . . . . . 1 . . . . Hacks Repelled . | . . . . . . . . . . . . . . . . . . . . . . . . . Allies | -11 -10 -10 -9 -9 -9 -8 -8 -8 -8 -7 -7 -7 -7 -7 -6 -6 -5 -5 -5 -4 -4 -4 -3 -3 -------- Run | Scr Mat Min Mat Min Exi Min Mat Gar Mat Fac Gar Fac Low Low Fac Gar Fac Gar Fac Fac Upp Upp Res Gar Total Allies 45 | . . 5 . 1 . . . . 4 4 4 1 . . . 3 . 13 2 8 . . . . Largest Group 11 | . . 5 4 1 1 . . . 1 4 4 1 1 . . 2 . 10 11 8 1 1 1 1 Highest-Rated Group 422 | . . 83 67 31 31 . . . 16 109 109 26 26 . . 58 . 373 422 297 137 137 137 137 Highest-Rated Ally 137 | . . 31 31 31 31 . . . 16 31 31 26 26 . . 32 . 49 49 137 137 137 137 137 Total Orders 22 | . . . . . . . . . 3 . . . . . . . . 12 4 3 . . . . STAY 13 | . . . . . . . . . 2 . . . . . . . . 8 2 1 . . . . FOLLOW 8 | . . . . . . . . . 1 . . . . . . . . 4 2 1 . . . . AID 1 | . . . . . . . . . . . . . . . . . . . . 1 . . . . Ally Attacks 269 | . . 23 18 . . . . . 9 15 29 . . . . 7 . 40 30 68 . . . 30 Total Damage 7012 | . . 260 225 . . . . . 147 219 495 . . . . 167 . 1236 966 1892 . . . 1405 Kills 51 | . . 5 5 . . . . . 1 . 5 . . . . . . 6 8 13 . . . 8 Allies Corrupted 2 | . . . 1 . . . . . . . . . . . . . . . 1 . . . . . Allies Melted . | . . . . . . . . . . . . . . . . . . . . . . . . . Intel | -11 -10 -10 -9 -9 -9 -8 -8 -8 -8 -7 -7 -7 -7 -7 -6 -6 -5 -5 -5 -4 -4 -4 -3 -3 ------- Run | Scr Mat Min Mat Min Exi Min Mat Gar Mat Fac Gar Fac Low Low Fac Gar Fac Gar Fac Fac Upp Upp Res Gar Robot Analysis Total . | . . . . . . . . . . . . . . . . . . . . . . . . . Derelict Logs Recovered 4 | . . 1 . 2 . . . . . . . . 1 . . . . . . . . . . . Drone Launches . | . . . . . . . . . . . . . . . . . . . . . . . . . Drone Recoveries . | . . . . . . . . . . . . . . . . . . . . . . . . . Exploration | -11 -10 -10 -9 -9 -9 -8 -8 -8 -8 -7 -7 -7 -7 -7 -6 -6 -5 -5 -5 -4 -4 -4 -3 -3 ------------- Run | Scr Mat Min Mat Min Exi Min Mat Gar Mat Fac Gar Fac Low Low Fac Gar Fac Gar Fac Fac Upp Upp Res Gar Turns Passed 27506 | . 1060 993 1853 1149 361 992 1160 1529 1896 2561 2592 682 1683 79 80 1861 103 2098 1810 1284 556 42 22 1060 Spaces Moved 13986 | 1 555 557 1058 702 223 579 476 679 628 1166 1110 395 997 49 47 830 57 1091 1179 693 526 34 19 335 Core 69 | . . 1 . . . . . . . . . . . . . . . . . 8 . . . 60 Treads 10280 | . 520 556 716 702 223 579 476 679 628 1166 1102 395 997 49 47 830 57 461 . 11 . . . 86 Legs 2285 | 1 35 . . . . . . . . . 8 . . . . . . 630 902 612 . . . 97 Wheels 1286 | . . . 342 . . . . . . . . . . . . . . . 277 62 526 34 19 26 Hover 66 | . . . . . . . . . . . . . . . . . . . . . . . . 66 Flight . | . . . . . . . . . . . . . . . . . . . . . . . . . Fastest Speed 50 | 120 120 160 100 160 160 160 160 160 240 162 160 160 163 163 163 160 160 118 105 50 100 100 100 50 Average Speed 163 | 120 157 160 144 160 160 160 173 195 240 185 170 161 163 163 163 182 160 167 122 128 100 100 100 203 Slowest Speed 800 | 120 160 500 160 160 160 160 240 240 240 246 260 163 163 163 163 240 160 320 330 330 100 100 100 800 Overloaded Moves . | . . . . . . . . . . . . . . . . . . . . . . . . . Propulsion Burnouts . | . . . . . . . . . . . . . . . . . . . . . . . . . Robots Hopped . | . . . . . . . . . . . . . . . . . . . . . . . . . Cave-ins Triggered . | . . . . . . . . . . . . . . . . . . . . . . . . . Exploration Rate (%) 48 | 2 68 100 84 99 60 98 52 72 53 37 86 11 88 14 2 56 2 74 18 13 62 8 1 42 Regions Visited 24 Branch Regions 8 Pre-discovered Areas 2 | . . 1 . 1 . . . . . . . . . . . . . . . . . . . . Known Exits Taken 11 | . 1 . 1 1 1 1 1 . . 1 . 1 . . 1 . 1 . . . . . 1 . Unknown Exits Taken 9 | 1 . 1 . . . . . . 1 . . . 1 1 . . . . 1 1 1 1 . . Scrap Searched 15 | . . 1 . 1 . 1 . . . . . . 11 . . . . . . . 1 . . . Spaces Dug 34 | . . . . 12 . . . . . 1 1 . 15 . . . . . 3 1 . . . 1 Terrain Destroyed 872 | . . . . 12 . . 20 13 157 51 143 . 70 . 1 154 . 19 46 122 35 . . 29 Melee 6 | . . . . . . . . . . . . . 1 . . . . . 3 1 . . . 1 Projectile 151 | . . . . . . . . 2 70 4 16 . 1 . 1 7 . 1 27 11 . . . 11 AOE 713 | . . . . 12 . . 20 11 87 46 127 . 68 . . 146 . 18 16 110 35 . . 17 Terrain Rammed . | . . . . . . . . . . . . . . . . . . . . . . . . . Walls Destroyed . | . . . . . . . . . . . . . . . . . . . . . . . . . Machines Disabled . | . . . . . . . . . . . . . . . . . . . . . . . . . Actions | -11 -10 -10 -9 -9 -9 -8 -8 -8 -8 -7 -7 -7 -7 -7 -6 -6 -5 -5 -5 -4 -4 -4 -3 -3 --------- Run | Scr Mat Min Mat Min Exi Min Mat Gar Mat Fac Gar Fac Low Low Fac Gar Fac Gar Fac Fac Upp Upp Res Gar Total 16966 | . 644 648 1235 719 230 613 709 828 870 1471 1546 429 1031 48 48 1038 64 1289 1404 948 548 42 22 542 Wait 1237 | . 18 77 30 7 . 15 134 21 118 224 156 15 12 . . 65 . 78 109 113 14 9 3 19 Move 13964 | . 554 556 1057 701 222 578 476 678 627 1166 1108 394 996 48 46 828 57 1090 1178 692 525 33 19 335 Hop . | . . . . . . . . . . . . . . . . . . . . . . . . . Pick Up 116 | . 11 4 17 . 3 2 2 16 4 5 19 1 . . . 10 . 5 2 6 1 . . 8 Fast Attach 147 | . 1 . 8 . . . 7 4 4 9 23 1 . . 1 16 3 18 14 19 . . . 19 Attach 45 | . 1 . 3 . . 2 5 . 1 3 8 . . . . 7 . 1 . 6 . . . 8 Detach 24 | . . . 2 . . . 1 1 . 2 4 . . . . 6 . 4 1 2 . . . 1 Swap 182 | . 5 2 11 4 . . 13 12 18 5 29 5 8 . . 18 . 16 16 16 2 . . 2 Drop 170 | . 5 3 23 2 5 . 12 26 7 11 27 2 1 . . 12 . 11 12 9 . . . 2 Fire 940 | . 49 6 84 4 . 16 59 59 82 44 171 9 7 . 1 74 3 64 67 78 5 . . 58 Melee 75 | . . . . . . . . . 8 . . 2 7 . . . . . 3 6 1 . . 48 Ram 32 | . . . . . . . . . . . . . . . . . . . . . . . . 32 Kick 11 | . . . . . . . . . . . . . . . . . . . 2 1 . . . 8 Crush 3 | . . . . 1 . . . . . . . . . . . . . . . . . . . 2 Escape Stasis 10 | . . . . . . . . 6 . 2 . . . . . 2 . . . . . . . . Rewire 5 | . . . . . . . . . 1 . 1 . . . . . 1 2 . . . . . . Trap 5 | . . . . . . . . 5 . . . . . . . . . . . . . . . . Miscellaneous . | . . . . . . . . . . . . . . . . . . . . . . . . . Route ------- -11/Scrapyard -10/Materials (discovered 3 exits: *Mat x2 / *Min) -10/Mines (discovered 2 exits: *Mat x2) -9/Materials (discovered 5 exits: *Mat x2 / *Min x2 / *Sto) -9/Mines (discovered 4 exits: *Mat x2 / *Exi / [*Zio]) -9/Exiles -8/Mines (discovered 2 exits: *Mat x2) -8/Materials (discovered 3 exits: *Fac x2 / Gar) -8/Garrison (discovered 2 exits: *Mat x2) -8/Materials -7/Factory (discovered 5 exits: *Fac x2 / Low x2 / Gar) -7/Garrison (discovered 3 exits: [*Fac x3]) -7/Factory -7/Lower Caves -7/Lower Caves -6/Factory (discovered 2 exits: Low / Gar) -6/Garrison -5/Factory -5/Garrison (discovered 4 exits: *Fac x4) -5/Factory -4/Factory -4/Upper Caves -4/Upper Caves -3/Research -3/Garrison History --------- Turn | Location | Event 1 | -11/Scrapyard | Discovered new exit (range 0) 1 | -11/Scrapyard | Entered Materials 316 | -10/Materials | Build established: Mutant 530 | -10/Materials | Discovered new exit (range 16) 531 | -10/Materials | Identified exit to Mines 830 | -10/Materials | Discovered new exit (range 15) 1061 | -10/Materials | Entered Mines 1125 | -10/Mines | Met a Derelict who couldn't figure out how to use a Trap Extractor 1164 | -10/Mines | Learned Materials emergency access door positions 1194 | -10/Mines | Discovered new exit (range 4) 1267 | -10/Mines | Assisted by bots powering up and referring to "LRC-V3" 1373 | -10/Mines | Discovered new exit (range 6) 1403 | -10/Mines | Learned location of Storage (-9) 1732 | -10/Mines | Received a Rocket Launcher from a helpful Derelict 2054 | -10/Mines | Entered Materials 2054 | -9/Materials | Accompanied by 4 allies 2054 | -9/Materials | Evolved 2 slots: Propulsion x1, Utility x1 2059 | -9/Materials | Led the pair of lost Derelicts to an unsafe place 2399 | -9/Materials | Discovered new exit (range 4) 2523 | -9/Materials | Discovered new exit (range 9) 3207 | -9/Materials | Identified exit to Materials 3355 | -9/Materials | Discovered exit to Materials (range 12) 3447 | -9/Materials | Build established: Scavenger-Mutant 3559 | -9/Materials | Discovered new exit (range 9) 3659 | -9/Materials | Discovered new exit (range 6) 3685 | -9/Materials | Identified exit to Storage 3905 | -9/Materials | Identified exit to Mines 3907 | -9/Materials | Entered Mines 3936 | -9/Mines | Discovered exit to Materials (range 9) 4223 | -9/Mines | A Derelict revealed a hidden shortcut to a safe place 4259 | -9/Mines | Build established: Mutant 4350 | -9/Mines | Learned location of Zion (-7) 4425 | -9/Mines | Found a hidden stash of uninstalled traps 4468 | -9/Mines | Deemed a non-threat by the Exiles lab entrance 4468 | -9/Mines | Discovered new exit (range 5) 4665 | -9/Mines | Learned 2 Materials zone layouts 4920 | -9/Mines | Discovered exit to Materials (range 15) 4939 | -9/Mines | Received a Mining Laser from a helpful Derelict 5054 | -9/Mines | Identified exit to Exiles 5056 | -9/Mines | Entered Exiles 5056 | -9/Exiles | Accompanied by 1 ally 5095 | -9/Exiles | Met 8R-AWN 5123 | -9/Exiles | Met EX-HEX 5180 | -9/Exiles | Met EX-BIN 5204 | -9/Exiles | Aligned with FarCom system 5206 | -9/Exiles | Given EX-Vault access code 5244 | -9/Exiles | Opened EX-Vault 5256 | -9/Exiles | Found Chronowheel 5292 | -9/Exiles | Warned to stay clear of 0b10 Research branches 5345 | -9/Exiles | Met EX-DEC 5401 | -9/Exiles | Discovered new exit (range 10) 5416 | -9/Exiles | Identified exit to Mines 5417 | -9/Exiles | Left Exiles lab with Chronowheel 5417 | -9/Exiles | Entered Mines 5481 | -8/Mines | Discovered exit to Materials (range 12) 5724 | -8/Mines | Build established: Skirmisher 5930 | -8/Mines | Discovered exit to Materials (range 14) 6409 | -8/Mines | Entered Materials 6409 | -8/Materials | Evolved 2 slots: Utility x1, Weapon x1 6564 | -8/Materials | Lost 3 parts (2n1u) 6719 | -8/Materials | Build established: Scavenger-Skirmisher 7286 | -8/Materials | Discovered new exit (range 3) 7488 | -8/Materials | Discovered new exit (range 16) 7569 | -8/Materials | Identified exit to Garrison 7569 | -8/Materials | Entered Garrison 7585 | -8/Garrison | Installed Relay Interface Framework 7820 | -8/Garrison | Triggered checkpoint 7952 | -8/Garrison | Garrison Relay disabled 7999 | -8/Garrison | Triggered checkpoint 8004 | -8/Garrison | Triggered checkpoint 8094 | -8/Garrison | Discovered new exit (range 12) 8162 | -8/Garrison | Triggered checkpoint 8587 | -8/Garrison | Triggered checkpoint 8768 | -8/Garrison | Triggered checkpoint 8768 | -8/Garrison | Garrison Relay disabled 9042 | -8/Garrison | Discovered new exit (range 11) 9098 | -8/Garrison | Entered Materials 9898 | -8/Materials | First assault squad dispatched 10015 | -8/Materials | Build established: Bothacker-Skirmisher 10820 | -8/Materials | Destroyed 8 combat bots 10821 | -8/Materials | Discovered new exit (range 14) 10830 | -8/Materials | Build established: Scavenger-Skirmisher 10994 | -8/Materials | Entered Factory 10994 | -7/Factory | Evolved 2 slots: Propulsion x1, Utility x1 12627 | -7/Factory | Discovered new exit (range 15) 12682 | -7/Factory | Build established: Scavenger-Tank 13037 | -7/Factory | Discovered new exit (range 15) 13205 | -7/Factory | Allied Derelicts emerged from ambush trap array 13237 | -7/Factory | Identified exit to Lower Caves 13495 | -7/Factory | Garrison activated, responded to threat 13555 | -7/Factory | Identified exit to Garrison 13555 | -7/Factory | Entered Garrison 13555 | -7/Garrison | Accompanied by 4 allies 13565 | -7/Garrison | Triggered checkpoint 13648 | -7/Garrison | Triggered checkpoint 13673 | -7/Garrison | Garrison Relay disabled 13680 | -7/Garrison | Triggered checkpoint 14268 | -7/Garrison | Triggered checkpoint 14327 | -7/Garrison | Garrison Relay disabled 14397 | -7/Garrison | Discovered new exit (range 14) 14728 | -7/Garrison | Phase Generator disabled 14748 | -7/Garrison | Discovered new exit (range 9) 15030 | -7/Garrison | Garrison Relay disabled 15074 | -7/Garrison | Garrison Relay disabled 15097 | -7/Garrison | Garrison Relay disabled 15162 | -7/Garrison | Garrison Relay disabled 15173 | -7/Garrison | Garrison Relay disabled 15435 | -7/Garrison | Core integrity fell below 50% 15471 | -7/Garrison | Lost 9 parts (1p2n2u4w) 15552 | -7/Garrison | Lost 3 parts (1u2w) 15890 | -7/Garrison | Triggered checkpoint 16035 | -7/Garrison | Core integrity fell below 20% 16049 | -7/Garrison | Lost 3 parts (1n2u) 16109 | -7/Garrison | Discovered new exit (range 8) 16128 | -7/Garrison | Expanded RIF knowledge: Structural Interface 16147 | -7/Garrison | Entered Factory 16228 | -7/Factory | System corruption reached 10% 16750 | -7/Factory | Build established: Bothacker-Mutant 16793 | -7/Factory | Discovered exit to Lower Caves (range 6) 16829 | -7/Factory | Entered Lower Caves 16829 | -7/Lower Caves | Accompanied by 1 ally 16890 | -7/Lower Caves | Learned 4 Factory zone layouts 18254 | -7/Lower Caves | Discovered new exit (range 13) 18426 | -7/Lower Caves | Build established: Bothacker-Tank 18512 | -7/Lower Caves | Entered another Lower Caves area 18566 | -7/Lower Caves | Discovered new exit (range 13) 18591 | -7/Lower Caves | Entered Factory 18591 | -6/Factory | Evolved 2 slots: Utility x2 18592 | -6/Factory | Identified exit to Lower Caves 18666 | -6/Factory | Identified exit to Garrison 18671 | -6/Factory | Entered Garrison 18741 | -6/Garrison | Expanded RIF knowledge: Patrol Navigation 18892 | -6/Garrison | Destroyed 7 combat bots 18978 | -6/Garrison | Spotted B-75 Beast 19010 | -6/Garrison | Triggered checkpoint 19026 | -6/Garrison | Garrison Relay disabled 19294 | -6/Garrison | Triggered checkpoint 19294 | -6/Garrison | Spotted B-75 Beast 19638 | -6/Garrison | Triggered checkpoint 19914 | -6/Garrison | Build established: Bothacker-Skirmisher 19959 | -6/Garrison | Garrison Relay disabled 19997 | -6/Garrison | Discovered new exit (range 10) 20532 | -6/Garrison | Entered Factory 20532 | -5/Factory | Evolved 2 slots: Propulsion x1, Utility x1 20547 | -5/Factory | Lost 3 parts (1p1n1w) 20635 | -5/Factory | Identified exit to Garrison 20635 | -5/Factory | Entered Garrison 20772 | -5/Garrison | Triggered checkpoint 20803 | -5/Garrison | Garrison Relay disabled 20982 | -5/Garrison | Build established: Bothacker-Mutant 21056 | -5/Garrison | Triggered checkpoint 21442 | -5/Garrison | Triggered checkpoint 21726 | -5/Garrison | Triggered checkpoint 22089 | -5/Garrison | Spotted B-75 Beast 22106 | -5/Garrison | Discovered new exit (range 10) 22123 | -5/Garrison | Discovered new exit (range 61) 22123 | -5/Garrison | Discovered new exit (range 6) 22123 | -5/Garrison | Discovered new exit (range 77) 22123 | -5/Garrison | Discovered new exit (range 76) 22170 | -5/Garrison | Garrison Relay disabled 22178 | -5/Garrison | Triggered checkpoint 22226 | -5/Garrison | Build established: Bothacker-Skirmisher 22298 | -5/Garrison | Expanded RIF knowledge: Autooverride 22490 | -5/Garrison | Triggered checkpoint 22510 | -5/Garrison | Learned Factory security intel 22512 | -5/Garrison | Triggered checkpoint 22553 | -5/Garrison | Garrison Relay disabled 22629 | -5/Garrison | Garrison Relay disabled 22637 | -5/Garrison | Garrison Relay disabled 22669 | -5/Garrison | Garrison Relay disabled 22733 | -5/Garrison | Entered Factory 22733 | -5/Factory | Accompanied by 10 allies 23057 | -5/Factory | Build established: Botlord-Skirmisher 23936 | -5/Factory | Discovered new exit (range 9) 24174 | -5/Factory | Lost 3 parts (1n2u) 24233 | -5/Factory | First assault squad dispatched 24398 | -5/Factory | Core integrity fell below 50% 24428 | -5/Factory | Lost 3 parts (2n1w) 24543 | -5/Factory | Entered another Factory area 24543 | -4/Factory | Accompanied by 8 allies 24543 | -4/Factory | Evolved 2 slots: Propulsion x1, Utility x1 24681 | -4/Factory | Build established: Botlord-Gunner 24793 | -4/Factory | First assault squad dispatched 25291 | -4/Factory | Lost 3 parts (2n1w) 25501 | -4/Factory | Cargo convoy interrupted 25524 | -4/Factory | Spotted B-86 Titan 25606 | -4/Factory | Lost 8 parts (1p3n4w) 25778 | -4/Factory | Discovered new exit (range 9) 25827 | -4/Factory | Entered Upper Caves 25827 | -4/Upper Caves | Accompanied by 1 ally 25952 | -4/Upper Caves | Build established: Bothacker-Mutant 26350 | -4/Upper Caves | Discovered new exit (range 15) 26383 | -4/Upper Caves | Entered another Upper Caves area 26383 | -4/Upper Caves | Accompanied by 1 ally 26409 | -4/Upper Caves | Discovered new exit (range 6) 26425 | -4/Upper Caves | Entered Research 26425 | -3/Research | Accompanied by 1 ally 26425 | -3/Research | Evolved 2 slots: Utility x2 26447 | -3/Research | Identified exit to Garrison 26447 | -3/Research | Entered Garrison 26447 | -3/Garrison | Accompanied by 1 ally 26470 | -3/Garrison | Spotted B-86 Titan 26495 | -3/Garrison | Destroyed B-86 Titan 26520 | -3/Garrison | Lost 11 parts (4n4u3w) 26614 | -3/Garrison | Assembled breached garrison interior 26783 | -3/Garrison | Garrison Relay disabled 26855 | -3/Garrison | Lost 3 parts (1p1u1w) 27213 | -3/Garrison | System corruption reached 10% 27215 | -3/Garrison | Build established: Scavenger-Mutant 27239 | -3/Garrison | Destroyed 13 combat bots 27320 | -3/Garrison | Garrison Relay disabled 27322 | -3/Garrison | Lost 12 parts (1p2n7u2w) 27325 | -3/Garrison | Destroyed 8 combat bots 27389 | -3/Garrison | Core integrity fell below 50% 27423 | -3/Garrison | Destroyed 7 combat bots 27427 | -3/Garrison | Lost 4 parts (2n2w) 27452 | -3/Garrison | System corruption reached 30% 27485 | -3/Garrison | Core integrity fell below 20% 27494 | -3/Garrison | Lost 7 parts (1p2n2u2w) 27507 | -3/Garrison | Core destroyed Last Messages --------------- 27460_ System corrupted by crushing effect (+2). 27460_ Knocked back. 27462_ Kicked as-88536. 27463_ Flexi-carbon Leg destroyed. 27463_ System corrupted by crushing effect (+4). 27463_ Slammed into as-88536. 27472_ Knocked back. 27473_ Slammed into as-88536. 27475_ Knocked back. 27476_ PQBPXGXCC=OYZ3RW/<%Z<|A5,I9L/GR>A:BCXW 27476_ Slammed into as-88536. 27478_ Destabilizing: Core damaged (-52). 27479_ Slammed into as-88536. 27482_ Destabilizing: System corrupted (+2). 27483_ Slammed into as-88536. 27493_ J1OQVMKG5V>S=ELC,>QEW4GU7 H/% 27493_ Slammed into as-88536. 27493_ as-88536 destroyed. 27495_ Slammed into as-20615. 27507_ Slammed into as-12467. Map ----- +----------------------------------------------------+ | # ########???????????????????????????????????????? | | "#???????????????????????????????????????? | | %% #????????????????????????????????????????? | | #"#### #????????????????????????????????????????? | | # #??# #????????????????????????????????????????? | | # #### #????????????????????????????????????????? | | # + #????????????????????????????????????????? | | # #### #????????????????????????????????????????? | | "#?# #######??????????????????????????????????? | | # ##?# ## #??????##??????????????????????????? | | # #?## ## !%###+### #??????????????????????????? | | #+### [%=% %%#"########????????????????????? | | ![%% %%% #????????????????????? | | /%=%[%! #???????????????????? | | ##### ## =#%%%"########+#???????????????????? | | ??### #" ""%%%###???????????????????????????? | | ??# ! %%%#???????????????????????????? | | ??# % %=*#???????????????????????????? | | ??# [%[ #???????????????????????????? | | ??# !%% ! +???????????????????????????? | | ??### "# *## ###???????????????????????????? | | ####" ##% ## #?????????????????????????????? | | ^ #????###??????????????????????? | | ! +????%%%??????????????????????? | | +#### ^ [ %% #????#a#??????????????????????? | | ????#" ## *[ #????#@#??????????????????????? | | ????## ## ## #????#%#??????????????????????? | | ?????# %######"# #????#%##?????????????????????? | | ?????#% #?????## #???##%!#?????????????????????? | | ?????+%=#??????# #???#!%%#?????????????????????? | | ?????# #??????# ######%##?????????????????????? | | ?????# #??????# %aa#??????????????????????? | | ????? #??????# ###### #??????????????????????? | | ????? #??????# #????# #??????????????????????? | | ?????#+##??????# #????# #?????? #??????????????? | | ???????????????# ###### #####% ####???????????? | | ???????????????# % %%%% ????????? | | ???????????????# % #??????????????? | | ???????????????# # ## #?????????????? | | ???????????????##########%#####??????????????????? | | ????????????????????????#%#??????????????????????? | | ????????????????????????#%#??????????????????????? | | ????????????????????????#%#####??????????????????? | | ????????????????????????#%##%%#??????????????????? | | ????????????????????????#%%%%%#??????????????????? | | ????????????????????????#%#####??????????????????? | | ???????????????????????##%#??????????????????????? | | ???????????????????????#%%#??????????????????????? | | ?????????????????#######%%#??????????????????????? | | ?????????????????#"""%%%#%#####??????????????????? | +----------------------------------------------------+ Best States ------------- Heat Dissipation 105 Energy Generation 25 Energy Capacity 340 Matter Stores 300 Matter Capacity 300 Sight Range 16 Robot Scan Range 14 Terrain Scan Range 16 Terrain Scan Density 10 Armor Coverage 1200 Resistance: TH 25 Resistance: EM 25 Phase Shifting 5 Evasion (%) 55 Targeting Accuracy 6 Core Analysis 6 Recoil Reduction 4 Particle Charging 25 Relay Coupler Types 6 Relay Coupler Value 155 Item Schematics ----------------- Imp. Assault Rifle | -9/Materials | Scanalyzed Robot Schematics ------------------ B-36 Bruiser | -7/Factory | Hacked Fabricated ------------ Nothing Alien Tech Used ----------------- None Achievements -------------- None Challenges ------------ None Game ------ Seed EtherialForceInterrupter Manual? 0 Play Time 03:06:51 Cumulative 447.6 hours Start 2022.08.02 @ 12:52:24 End 2022.08.02 @ 17:18:34 Sessions 1 Manual Loads 0 Difficulty Rogue Special Mode None Game No. 494 Rogue 493 Adventurer 0 Explorer 1 Win Type - Total 14 Types 9/0/2/3/0/0/0/0/0 Lore% 78 Gallery% 88 Achievement% 68 Wizard Run 0 Options --------- ASCII 0 Keyboard 1 Movement Vi Keybinds 0 Fullscreen 1 Font 18/SmallcapsGlow Map View 76x50 Tactical HUD 1 Map Filters NONE Filters NONE Steam 1 RUN: 4935d5d6-b92f-4c65-8ece-97c99ec778b8